fUST/lending_fUST_20250429
["ID","MTS","AMOUNT","RATE_DAILY","PERIOD"]
[359262150,1745874675997,-400.0,0.00023835,2]
[359262151,1745874676007,-408.64,0.00023835,2]
[359262152,1745874676017,-400.0,0.00023835,2]
[359262153,1745874676026,-400.0,0.00023835,2]
[359262154,1745874676035,-433.49,0.00023835,2]
[359262155,1745874676045,-400.0,0.00023835,2]
[359262156,1745874676054,-400.0,0.00023835,2]
[359262157,1745874676064,-400.0,0.00023835,2]
[359262158,1745874676075,-400.0,0.00023835,2]
[359262159,1745874676085,-781.59,0.00023835,2]
[359262160,1745874676095,-441.74,0.00023835,2]
[359262161,1745874676105,-400.0,0.00023835,2]
[359262162,1745874676114,-492.69,0.00023835,2]
[359262163,1745874676125,-624.69,0.00023835,2]
[359262164,1745874676135,-400.0,0.00023835,2]
[359262165,1745874676144,-400.0,0.00023835,2]
[359262166,1745874676154,-400.0,0.00023835,2]
[359262167,1745874676173,-2994.57,0.00023835,2]
[359262168,1745874676191,-400.0,0.00023835,2]
[359262169,1745874676208,-2153.84,0.00023835,2]
[359262170,1745874676227,-403.48,0.00023835,2]
[359262171,1745874676246,-458.59,0.00023835,2]
[359262172,1745874676263,-400.0,0.00023835,2]
[359262173,1745874676281,-400.0,0.00023835,2]
[359262174,1745874676296,-877.07,0.00023835,2]
[359262175,1745874676312,-400.0,0.00023835,2]
[359262176,1745874676331,-400.0,0.00023835,2]
[359262177,1745874676350,-400.0,0.00023835,2]
[359262178,1745874676365,-400.0,0.00023835,2]
[359262179,1745874676385,-400.0,0.00023835,2]
[359262180,1745874676399,-400.0,0.00023835,2]
[359262181,1745874676415,-400.0,0.00023835,2]
[359262182,1745874676430,-2368.24,0.00023835,2]
[359262183,1745874676446,-400.0,0.00023835,2]
[359262184,1745874676461,-400.0,0.00023835,2]
[359262185,1745874676476,-403.68,0.00023835,2]
[359262186,1745874676491,-400.0,0.00023835,2]
[359262187,1745874676505,-470.48,0.00023835,2]
[359262188,1745874676520,-854.56,0.00023835,2]
[359262189,1745874676536,-400.0,0.00023835,2]
[359262190,1745874676552,-400.0,0.00023835,2]
[359262191,1745874676568,-2700.32,0.00023835,2]
[359262192,1745874676586,-468.44,0.00023835,2]
[359262193,1745874676602,-400.0,0.00023835,2]
[359262194,1745874676617,-2094.81,0.00023835,2]
[359262195,1745874676632,-2431.46,0.00023835,2]
[359262196,1745874676648,-400.0,0.00023835,2]
[359262197,1745874676664,-2080.6,0.00023835,2]
[359262198,1745874676680,-843.96,0.00023835,2]
[359262199,1745874676695,-400.0,0.00023835,2]
[359262200,1745874676709,-769.73,0.00023835,2]
[359262201,1745874676723,-494.29,0.00023835,2]
[359262202,1745874676738,-400.0,0.00023835,2]
[359262203,1745874676752,-400.0,0.00023835,2]
[359262204,1745874676766,-400.0,0.00023835,2]
[359262205,1745874676781,-644.32,0.00023835,2]
[359262206,1745874676798,-335.55942988,0.00023835,2]
[359262207,1745874676812,-400.0,0.00023835,2]
[359262208,1745874676828,-1533.28,0.00023835,2]
[359262209,1745874676842,-400.0,0.00023835,2]
[359262210,1745874676858,-508.44,0.00023835,2]
[359262211,1745874676874,-400.0,0.00023835,2]
[359262212,1745874676888,-2944.67,0.00023835,2]
[359262213,1745874676902,-5364.52,0.00023835,2]
[359262214,1745874676917,-870.57,0.00023835,2]
[359262215,1745874676931,-400.0,0.00023835,2]
[359262216,1745874676946,-400.0,0.00023835,2]
[359262217,1745874676962,-400.0,0.00023835,2]
[359262218,1745874676979,-400.0,0.00023835,2]
[359262219,1745874676993,-2274.06,0.00023835,2]
[359262220,1745874677009,-2934.9,0.00023835,2]
[359262221,1745874677025,-400.0,0.00023835,2]
[359262222,1745874677039,-1979.2,0.00023835,2]
[359262223,1745874677056,-445.16,0.00023835,2]
[359262224,1745874677073,-400.0,0.00023835,2]
[359262225,1745874677089,-400.0,0.00023835,2]
[359262226,1745874677312,-2316.28506733,0.00023835,2]
[359262227,1745874678378,-457.733418,0.00021141,2]
[359262228,1745874678388,-400.0,0.00021917,2]
[359262229,1745874678398,-400.0,0.00021917,2]
[359262230,1745874678407,-400.0,0.00021917,2]
[359262231,1745874678417,-400.0,0.00021917,2]
[359262232,1745874678426,-400.0,0.00021917,2]
[359262233,1745874678435,-766.18,0.00022191,2]
[359262234,1745874678444,-151.0,0.00022191,7]
[359262235,1745874678453,-400.0,0.00022191,2]
[359262236,1745874678463,-151.0,0.00022191,7]
[359262237,1745874678472,-400.0,0.00022191,2]
[359262238,1745874678481,-400.0,0.00022191,2]
[359262239,1745874678491,-202.71555799,0.00022191,2]
[359262240,1745874678501,-400.0,0.00022191,2]
[359262241,1745874678511,-766.18,0.00022465,2]
[359262242,1745874678520,-400.0,0.00022465,2]
[359262243,1745874678529,-151.0,0.00022465,7]
[359262244,1745874678539,-187.453569,0.00022465,7]
[359262245,1745874678552,-410.65501489,0.00022465,2]
[359262246,1745874678562,-349.18492513,0.00022465,2]
[359262247,1745874678572,-766.18,0.00022739,2]
[359262248,1745874678581,-400.0,0.00022739,2]
[359262249,1745874678591,-766.18,0.00023013,2]
[359262250,1745874678600,-400.0,0.00023013,2]
[359262251,1745874678610,-766.18,0.00023287,2]
[359262252,1745874678622,-400.0,0.00023287,2]
[359262253,1745874678631,-905.81,0.00023561,2]
[359262254,1745874678642,-766.18,0.00023561,2]
[359262255,1745874678652,-400.0,0.00023561,2]
[359262256,1745874678662,-508.22493267,0.00023835,2]
[359262257,1745874678672,-400.0,0.00023835,2]
[359262258,1745874678681,-413.76,0.00023835,2]
[359262259,1745874678690,-500.0,0.00023835,2]
[359262260,1745874678701,-400.0,0.00023835,2]
[359262261,1745874678711,-400.0,0.00023835,2]
[359262262,1745874678720,-400.0,0.00023835,2]
[359262263,1745874678730,-501.56,0.00023835,2]
[359262264,1745874678740,-456.0,0.00023835,2]
[359262265,1745874678749,-683.46,0.00023835,2]
[359262266,1745874678759,-400.0,0.00023835,2]
[359262267,1745874678769,-445.37,0.00023835,2]
[359262268,1745874678779,-538.85,0.00023835,2]
[359262269,1745874678789,-400.0,0.00023835,2]
[359262270,1745874678798,-400.0,0.00023835,2]
[359262271,1745874678808,-400.0,0.00023835,2]
[359262272,1745874678818,-705.37,0.00023835,2]
[359262273,1745874678828,-400.0,0.00023835,2]
[359262274,1745874678838,-3049.43,0.00023835,2]
[359262275,1745874678848,-400.0,0.00023835,2]
[359262276,1745874678858,-415.2,0.00023835,2]
[359262277,1745874678868,-3447.76,0.00023835,2]
[359262278,1745874678878,-561.06,0.00023835,2]
[359262279,1745874678888,-400.0,0.00023835,2]
[359262280,1745874678898,-519.34,0.00023835,2]
[359262281,1745874678908,-490.61,0.00023835,2]
[359262282,1745874678917,-905.81,0.00023835,2]
[359262283,1745874678927,-766.18,0.00023835,2]
[359262284,1745874678937,-400.0,0.00023835,2]
[359262285,1745874678946,-900.0,0.0002396,2]
[359262286,1745874678956,-3009.23,0.00024,3]
[359262287,1745874678966,-160.0,0.00024,7]
[359262288,1745874678976,-160.0,0.00024,7]
[359262289,1745874678986,-160.0,0.00024,7]
[359262290,1745874678998,-421.20781996,0.00024,7]
[359262291,1745874679008,-400.0,0.00024109,2]
[359262292,1745874679018,-400.0,0.00024109,2]
[359262293,1745874679159,-400.0,0.00024109,2]
[359262294,1745874679170,-326.39355313,0.00024109,2]
[359262295,1745874679180,-400.0,0.00024109,2]
[359262296,1745874679189,-629.27,0.00024109,2]
[359262297,1745874679199,-400.0,0.00024109,2]
[359262298,1745874679208,-400.0,0.00024109,2]
[359262299,1745874679218,-400.0,0.00024109,2]
[359262300,1745874679227,-200.0,0.00024109,2]
[359262301,1745874679237,-400.0,0.00024109,2]
[359262302,1745874679247,-400.0,0.00024109,2]
[359262303,1745874679257,-400.0,0.00024109,2]
[359262304,1745874679266,-400.0,0.00024109,2]
[359262305,1745874679276,-400.0,0.00024109,2]
[359262306,1745874679285,-400.0,0.00024109,2]
[359262307,1745874679295,-400.0,0.00024109,2]
[359262308,1745874679305,-515.11,0.00024109,2]
[359262309,1745874679314,-400.0,0.00024109,2]
[359262310,1745874679324,-400.0,0.00024109,2]
[359262311,1745874679333,-319.80279017,0.00024109,2]
[359262312,1745874679343,-400.0,0.00024109,2]
[359262313,1745874679352,-520.58,0.00024109,2]
[359262314,1745874679362,-400.0,0.00024109,2]
[359262315,1745874679372,-400.0,0.00024109,2]
[359262316,1745874679381,-400.0,0.00024109,2]
[359262317,1745874679391,-400.0,0.00024109,2]
[359262318,1745874679401,-741.59,0.00024109,2]
[359262319,1745874679411,-400.0,0.00024109,2]
[359262320,1745874679420,-400.0,0.00024109,2]
[359262321,1745874679429,-400.0,0.00024109,2]
[359262322,1745874679439,-1918.68,0.00024109,2]
[359262323,1745874679449,-400.0,0.00024109,2]
[359262324,1745874679459,-400.0,0.00024109,2]
[359262325,1745874679470,-1774.93,0.00024109,2]
[359262326,1745874679480,-2272.84,0.00024109,2]
[359262327,1745874679490,-400.0,0.00024109,2]
[359262328,1745874679500,-400.0,0.00024109,2]
[359262329,1745874679510,-400.0,0.00024109,2]
[359262330,1745874679519,-400.0,0.00024109,2]
[359262331,1745874679528,-400.0,0.00024109,2]
[359262332,1745874679538,-550.39,0.00024109,2]
[359262333,1745874679548,-400.0,0.00024109,2]
[359262334,1745874679557,-400.0,0.00024109,2]
[359262335,1745874679567,-558.96,0.00024109,2]
[359262336,1745874679576,-1938.49,0.00024109,2]
[359262337,1745874679586,-400.0,0.00024109,2]
[359262338,1745874679596,-400.0,0.00024109,2]
[359262339,1745874679605,-400.0,0.00024109,2]
[359262340,1745874679615,-1664.37,0.00024109,2]
[359262341,1745874679626,-400.0,0.00024109,2]
[359262342,1745874679635,-400.0,0.00024109,2]
[359262343,1745874679645,-400.0,0.00024109,2]
[359262344,1745874679654,-1892.81,0.00024109,2]
[359262345,1745874679664,-400.0,0.00024109,2]
[359262346,1745874679675,-400.0,0.00024109,2]
[359262347,1745874679686,-400.0,0.00024109,2]
[359262348,1745874679695,-400.0,0.00024109,2]
[359262349,1745874679705,-400.0,0.00024109,2]
[359262350,1745874679715,-566.7,0.00024109,2]
[359262351,1745874679726,-400.0,0.00024109,2]
[359262352,1745874679736,-211.51239948,0.00024109,2]
[359262353,1745874679747,-436.45,0.00024109,2]
[359262354,1745874679758,-440.75,0.00024109,2]
[359262355,1745874679768,-400.0,0.00024109,2]
[359262356,1745874679779,-400.0,0.00024109,2]
[359262357,1745874679789,-400.0,0.00024109,2]
[359262358,1745874679799,-400.0,0.00024109,2]
[359262359,1745874679809,-676.04,0.00024109,2]
[359262360,1745874679819,-1023.77,0.00024109,2]
[359262361,1745874679830,-400.0,0.00024109,2]
[359262362,1745874679841,-400.0,0.00024109,2]
[359262363,1745874679862,-400.0,0.00024109,2]
[359262364,1745874679873,-400.0,0.00024109,2]
[359262365,1745874679883,-400.0,0.00024109,2]
[359262366,1745874679892,-400.0,0.00024109,2]
[359262367,1745874679903,-1511.69,0.00024109,2]
[359262368,1745874679913,-400.0,0.00024109,2]
[359262369,1745874679923,-400.0,0.00024109,2]
[359262370,1745874679934,-706.15,0.00024109,2]
[359262371,1745874679944,-400.0,0.00024109,2]
[359262372,1745874679955,-400.0,0.00024109,2]
[359262373,1745874679964,-253.88167891,0.00024109,2]
[359262374,1745874679974,-400.0,0.00024109,2]
[359262375,1745874679984,-400.0,0.00024109,2]
[359262376,1745874679994,-400.0,0.00024109,2]
[359262377,1745874680004,-400.0,0.00024109,2]
[359262378,1745874680014,-400.0,0.00024109,2]
[359262379,1745874680024,-400.0,0.00024109,2]
[359262380,1745874680034,-468.03,0.00024109,2]
[359262381,1745874680044,-400.0,0.00024109,2]
[359262382,1745874680054,-400.0,0.00024109,2]
[359262383,1745874680064,-400.0,0.00024109,2]
[359262384,1745874680077,-966.51,0.00024109,2]
[359262385,1745874680087,-400.0,0.00024109,2]
[359262386,1745874680098,-300.39996762,0.00024109,2]
[359262387,1745874680107,-400.0,0.00024109,2]
[359262388,1745874680117,-400.0,0.00024109,2]
[359262389,1745874680128,-400.0,0.00024109,2]
[359262390,1745874680139,-400.0,0.00024109,2]
[359262391,1745874680149,-400.0,0.00024109,2]
[359262392,1745874680159,-400.0,0.00024109,2]
[359262393,1745874680170,-785.89,0.00024109,2]
[359262394,1745874680180,-400.0,0.00024109,2]
[359262395,1745874680190,-400.0,0.00024109,2]
[359262396,1745874680201,-400.0,0.00024109,2]
[359262397,1745874680210,-400.0,0.00024109,2]
[359262398,1745874680220,-591.95,0.00024109,2]
[359262399,1745874680229,-400.0,0.00024109,2]
[359262400,1745874680239,-400.0,0.00024109,2]
[359262401,1745874680249,-400.0,0.00024109,2]
[359262402,1745874680259,-400.0,0.00024109,2]
[359262403,1745874680269,-352.29463154,0.00024109,2]
[359262404,1745874680279,-507.36,0.00024109,2]
[359262405,1745874680288,-400.0,0.00024109,2]
[359262406,1745874680298,-487.98,0.00024109,2]
[359262407,1745874680308,-400.0,0.00024109,2]
[359262408,1745874680318,-400.0,0.00024109,2]
[359262409,1745874680327,-432.62,0.00024109,2]
[359262410,1745874680337,-400.0,0.00024109,2]
[359262411,1745874680346,-400.0,0.00024109,2]
[359262412,1745874680356,-1184.07,0.00024109,2]
[359262413,1745874680366,-469.77,0.00024109,2]
[359262414,1745874680376,-498.42,0.00024109,2]
[359262415,1745874680386,-498.48,0.00024109,2]
[359262416,1745874680396,-400.0,0.00024109,2]
[359262417,1745874680405,-400.0,0.00024109,2]
[359262418,1745874680416,-500.0,0.00024109,2]
[359262419,1745874680425,-400.0,0.00024109,2]
[359262420,1745874680435,-622.49,0.00024109,2]
[359262421,1745874680444,-400.0,0.00024109,2]
[359262422,1745874680454,-400.0,0.00024109,2]
[359262423,1745874680464,-400.0,0.00024109,2]
[359262424,1745874680474,-913.45,0.00024109,2]
[359262425,1745874680484,-2133.61,0.00024109,2]
[359262426,1745874680494,-1151.12,0.00024109,2]
[359262427,1745874680504,-3712.11591454,0.00024109,2]
[359262428,1745874681632,-0.05381584,0.00024109,2]
[359262429,1745874681645,-472.65026962,0.00024109,2]
[359262430,1745874681655,-632.7,0.00024109,2]
[359262431,1745874681664,-3999.0,0.00024109,2]
[359262432,1745874681673,-1101.41,0.00024109,2]
[359262433,1745874681683,-400.0,0.00024109,2]
[359262434,1745874681692,-400.0,0.00024109,2]
[359262435,1745874681701,-400.0,0.00024109,2]
[359262436,1745874681711,-400.0,0.00024109,2]
[359262437,1745874681721,-804.7,0.00024109,2]
[359262438,1745874681730,-902.66,0.00024109,2]
[359262439,1745874681739,-400.0,0.00024109,2]
[359262440,1745874681749,-403.25,0.00024109,2]
[359262441,1745874681758,-400.0,0.00024109,2]
[359262442,1745874681767,-593.65,0.00024109,2]
[359262443,1745874681777,-400.0,0.00024109,2]
[359262444,1745874681787,-2730.49,0.00024109,2]
[359262445,1745874681797,-400.0,0.00024109,2]
[359262446,1745874681807,-159.30973038,0.00024109,2]
[359262495,1745875721438,23017.63703706,0.000175,4]
[359262503,1745875726476,819.21517911,0.00015,2]
[359262526,1745875831872,-7026.8541424,0.00019652,2]
[359262527,1745875831883,-250.0,0.00019852,2]
[359262528,1745875831892,-807.26275145,0.00020544,2]
[359262529,1745875831931,-392.73724855,0.00020544,2]
[359262530,1745875831941,-300.0,0.00020544,2]
[359262531,1745875831951,-1716.23099406,0.00020545,2]
[359262559,1745875838016,-604.24213767,0.00020545,2]
[359262560,1745875838026,-300.0,0.00020643,2]
[359262561,1745875838036,-500.0,0.00020644,2]
[359262562,1745875838046,-18.43786233,0.00020644,2]
[359262563,1745875838058,-481.56213767,0.00020644,2]
[359262564,1745875838067,-500.0,0.00020644,2]
[359262565,1745875838077,-500.0,0.00020644,2]
[359262566,1745875838087,-183.07391835,0.00020644,2]
[359262567,1745875838098,-316.92608165,0.00020644,2]
[359262568,1745875838108,-358.90231742,0.00020644,2]
[359262569,1745875838117,-500.0,0.00020644,2]
[359262570,1745875838127,-500.0,0.00020644,2]
[359262571,1745875838136,-500.0,0.00020644,2]
[359262572,1745875838146,-500.0,0.00020644,2]
[359262573,1745875838156,-500.0,0.00020644,2]
[359262574,1745875838165,-500.0,0.00020644,2]
[359262575,1745875838175,-500.0,0.00020644,2]
[359262576,1745875838185,-500.0,0.00020644,2]
[359262577,1745875838194,-500.0,0.00020644,2]
[359262578,1745875838203,-500.0,0.00020644,2]
[359262579,1745875838213,-500.0,0.00020644,2]
[359262580,1745875838222,-500.0,0.00020644,2]
[359262581,1745875838232,-500.0,0.00020644,2]
[359262582,1745875838242,-500.0,0.00020644,2]
[359262583,1745875838251,-500.0,0.00020644,2]
[359262584,1745875838261,-500.0,0.00020644,2]
[359262585,1745875838270,-500.0,0.00020644,2]
[359262586,1745875838280,-500.0,0.00020644,2]
[359262587,1745875838290,-500.0,0.00020644,2]
[359262588,1745875838299,-500.0,0.00020644,2]
[359262589,1745875838309,-613.91200049,0.00020644,2]
[359262590,1745875838319,-350.48418895,0.00020644,2]
[359262591,1745875838329,-500.0,0.00020644,2]
[359262592,1745875838339,-500.0,0.00020644,2]
[359262593,1745875838350,-500.0,0.00020644,2]
[359262594,1745875838360,-500.0,0.00020644,2]
[359262595,1745875838370,-500.0,0.00020644,2]
[359262596,1745875838381,-500.0,0.00020644,2]
[359262597,1745875838392,-500.0,0.00020644,2]
[359262598,1745875838402,-500.0,0.00020644,2]
[359262599,1745875838412,-500.0,0.00020644,2]
[359262600,1745875838422,-500.0,0.00020644,2]
[359262601,1745875838432,-500.0,0.00020644,2]
[359262602,1745875838443,-500.0,0.00020644,2]
[359262603,1745875838455,-500.0,0.00020644,2]
[359262604,1745875838465,-500.0,0.00020644,2]
[359262605,1745875838475,-156.33595627,0.00020644,2]
[359262606,1745875838486,-500.0,0.00020644,2]
[359262607,1745875838497,-500.0,0.00020644,2]
[359262608,1745875838507,-500.0,0.00020644,2]
[359262609,1745875838517,-500.0,0.00020644,2]
[359262610,1745875838527,-500.0,0.00020644,2]
[359262611,1745875838537,-500.0,0.00020644,2]
[359262612,1745875838547,-500.0,0.00020644,2]
[359262613,1745875838557,-500.0,0.00020644,2]
[359262614,1745875838566,-500.0,0.00020644,2]
[359262615,1745875838576,-500.0,0.00020644,2]
[359262616,1745875838585,-500.0,0.00020644,2]
[359262617,1745875838595,-500.0,0.00020644,2]
[359262618,1745875838604,-500.0,0.00020644,2]
[359262619,1745875838613,-500.0,0.00020644,2]
[359262620,1745875838622,-500.0,0.00020644,2]
[359262621,1745875838632,-500.0,0.00020644,2]
[359262622,1745875838642,-500.0,0.00020644,2]
[359262623,1745875838651,-500.0,0.00020644,2]
[359262624,1745875838661,-500.0,0.00020644,2]
[359262625,1745875838673,-500.0,0.00020644,2]
[359262626,1745875838682,-500.0,0.00020644,2]
[359262627,1745875838692,-500.0,0.00020644,2]
[359262628,1745875838701,-500.0,0.00020644,2]
[359262629,1745875838710,-500.0,0.00020644,2]
[359262630,1745875838720,-500.0,0.00020644,2]
[359262631,1745875838729,-500.0,0.00020644,2]
[359262632,1745875838739,-500.0,0.00020644,2]
[359262633,1745875838751,-500.0,0.00020644,2]
[359262634,1745875838760,-500.0,0.00020644,2]
[359262635,1745875838771,-500.0,0.00020644,2]
[359262636,1745875838780,-1951.27319653,0.00020644,2]
[359262637,1745875838790,-500.0,0.00020644,2]
[359262638,1745875838799,-1951.27319653,0.00020644,2]
[359262639,1745875838809,-500.0,0.00020644,2]
[359262640,1745875838818,-1951.27319653,0.00020644,2]
[359262641,1745875838828,-500.0,0.00020644,2]
[359262642,1745875838839,-1951.27319653,0.00020644,2]
[359262643,1745875838850,-500.0,0.00020644,2]
[359262644,1745875838860,-1951.27319653,0.00020644,2]
[359262645,1745875838870,-500.0,0.00020644,2]
[359262646,1745875838880,-1951.27319653,0.00020644,2]
[359262647,1745875838890,-500.0,0.00020644,2]
[359262648,1745875838900,-178.60838115,0.00020644,2]
[359262649,1745875838910,-1951.27319653,0.00020644,2]
[359262650,1745875838920,-500.0,0.00020644,2]
[359262651,1745875838931,-1951.27319653,0.00020644,2]
[359262652,1745875838941,-1951.27319653,0.00020644,2]
[359262653,1745875838951,-500.0,0.00020644,2]
[359262654,1745875838961,-1951.27319653,0.00020644,2]
[359262655,1745875838971,-1951.27319653,0.00020644,2]
[359262656,1745875838980,-500.0,0.00020644,2]
[359262657,1745875838990,-1951.27319653,0.00020644,2]
[359262658,1745875838999,-1951.27319653,0.00020644,2]
[359262659,1745875839008,-500.0,0.00020644,2]
[359262660,1745875839018,-1951.27319653,0.00020644,2]
[359262661,1745875839028,-1951.27319653,0.00020644,2]
[359262662,1745875839038,-1951.27319653,0.00020644,2]
[359262663,1745875839047,-1951.27319653,0.00020644,2]
[359262664,1745875839058,-1951.27319653,0.00020644,2]
[359262665,1745875839068,-1951.27319653,0.00020644,2]
[359262666,1745875839078,-1951.27319653,0.00020644,2]
[359262667,1745875839088,-1951.27319653,0.00020644,2]
[359262668,1745875839097,-1951.27319653,0.00020644,2]
[359262669,1745875839107,-1951.27319653,0.00020644,2]
[359262670,1745875839116,-1951.27319653,0.00020644,2]
[359262671,1745875839126,-1951.27319653,0.00020644,2]
[359262672,1745875839136,-1951.27319653,0.00020644,2]
[359262673,1745875839146,-1951.27319653,0.00020644,2]
[359262674,1745875839157,-1951.27319653,0.00020644,2]
[359262675,1745875839167,-1951.27319653,0.00020644,2]
[359262676,1745875839178,-1951.27319653,0.00020644,2]
[359262677,1745875839188,-1951.27319653,0.00020644,2]
[359262678,1745875839197,-1951.27319653,0.00020644,2]
[359262679,1745875839207,-1951.27319653,0.00020644,2]
[359262680,1745875839216,-1951.27319653,0.00020644,2]
[359262681,1745875839225,-1951.27319653,0.00020644,2]
[359262682,1745875839235,-1951.27319653,0.00020644,2]
[359262683,1745875839245,-1951.27319653,0.00020644,2]
[359262684,1745875839254,-1951.27319653,0.00020644,2]
[359262685,1745875839264,-1951.27319653,0.00020644,2]
[359262686,1745875839274,-1951.27319653,0.00020644,2]
[359262687,1745875839283,-1951.27319653,0.00020644,2]
[359262688,1745875839294,-1924.55033363,0.00020644,2]
[359262689,1745875839304,-1924.55033363,0.00020644,2]
[359262690,1745875839313,-1924.55033363,0.00020644,2]
[359262691,1745875839323,-1924.55033363,0.00020644,2]
[359262692,1745875839333,-1924.55033363,0.00020644,2]
[359262693,1745875839343,-1924.55033363,0.00020644,2]
[359262694,1745875839353,-1924.55033363,0.00020644,2]
[359262695,1745875839363,-1924.55033363,0.00020644,2]
[359262696,1745875839373,-1924.55033363,0.00020644,2]
[359262697,1745875839383,-1924.55033363,0.00020644,2]
[359262698,1745875839393,-1924.55033363,0.00020644,2]
[359262699,1745875839403,-1924.55033363,0.00020644,2]
[359262700,1745875839413,-1924.55033363,0.00020644,2]
[359262701,1745875839423,-1924.55033363,0.00020644,2]
[359262702,1745875839433,-1924.55033363,0.00020644,2]
[359262703,1745875839443,-1924.55033363,0.00020644,2]
[359262704,1745875839453,-1924.55033363,0.00020644,2]
[359262705,1745875839463,-1924.55033363,0.00020644,2]
[359262706,1745875839473,-1924.55033363,0.00020644,2]
[359262707,1745875839483,-1924.55033363,0.00020644,2]
[359262708,1745875839493,-1924.55033363,0.00020644,2]
[359262709,1745875839503,-1924.55033363,0.00020644,2]
[359262711,1745875839513,-1924.55033363,0.00020644,2]
[359262712,1745875839522,-1924.55033363,0.00020644,2]
[359262713,1745875839532,-1924.55033363,0.00020644,2]
[359262714,1745875839543,-1924.55033363,0.00020644,2]
[359262715,1745875839553,-1924.55033363,0.00020644,2]
[359262716,1745875839564,-1924.55033363,0.00020644,2]
[359262718,1745875839574,-1924.55033363,0.00020644,2]
[359262720,1745875839583,-1924.55033363,0.00020644,2]
[359262722,1745875839593,-1924.55033363,0.00020644,2]
[359262724,1745875839603,-1889.5585094,0.00020644,2]
[359262726,1745875839612,-1889.5585094,0.00020644,2]
[359262728,1745875839622,-1889.5585094,0.00020644,2]
[359262730,1745875839632,-1889.5585094,0.00020644,2]
[359262731,1745875839642,-1889.5585094,0.00020644,2]
[359262732,1745875839652,-1889.5585094,0.00020644,2]
[359262733,1745875839661,-1889.5585094,0.00020644,2]
[359262734,1745875839674,-1889.5585094,0.00020644,2]
[359262735,1745875839684,-1889.5585094,0.00020644,2]
[359262736,1745875839693,-1889.5585094,0.00020644,2]
[359262737,1745875839703,-1889.5585094,0.00020644,2]
[359262738,1745875839713,-50000.0,0.00020644,2]
[359262739,1745875839723,-500.0,0.00020673,2]
[359262740,1745875839734,-500.0,0.00020673,2]
[359262741,1745875839744,-500.0,0.00020673,2]
[359262742,1745875839755,-623.2087604,0.00020673,2]
[359262743,1745875839765,-500.0,0.00020673,2]
[359262744,1745875839775,-500.0,0.00020673,2]
[359262745,1745875839785,-500.0,0.00020673,2]
[359262747,1745875839795,-500.0,0.00020673,2]
[359262748,1745875839804,-222.97816615,0.00020673,2]
[359262749,1745875839814,-300.41115905,0.00020673,2]
[359262750,1745875839824,-500.69757125,0.00020673,2]
[359262751,1745875839833,-500.0,0.00020673,2]
[359262752,1745875839843,-500.0,0.00020673,2]
[359262753,1745875839852,-500.0,0.00020673,2]
[359262754,1745875839862,-500.0,0.00020673,2]
[359262755,1745875839871,-500.0,0.00020673,2]
[359262756,1745875839881,-500.0,0.00020673,2]
[359262757,1745875839891,-500.0,0.00020673,2]
[359262758,1745875839900,-300.0,0.00020673,2]
[359262759,1745875839910,-500.0,0.00020673,2]
[359262760,1745875839920,-1981.16891111,0.00020793,2]
[359262761,1745875839929,-111.76918459,0.000209,3]
[359262762,1745875840138,-823.544997,0.000209,3]